fUSD/lending_fUSD_20240729
["ID","MTS","AMOUNT","RATE_DAILY","PERIOD"]
[333604471,1722275451858,-478.41280839,0.00010989,2]
[333604472,1722275451867,-500.0,0.00010989,2]
[333604473,1722275451876,-500.0,0.00010989,2]
[333604474,1722275451886,-500.0,0.00010989,2]
[333604475,1722275451898,-500.0,0.00010989,2]
[333604476,1722275451908,-500.0,0.00010989,2]
[333604477,1722275451917,-500.0,0.00010989,2]
[333604478,1722275451927,-500.0,0.00010989,2]
[333604479,1722275451936,-500.0,0.00010989,2]
[333604480,1722275451946,-500.0,0.00010989,2]
[333604481,1722275451956,-707.86,0.00010989,2]
[333604482,1722275451966,-707.86,0.00010989,2]
[333604483,1722275451978,-707.86,0.00010989,2]
[333604484,1722275451988,-767.0,0.0001099,2]
[333604485,1722275451998,-126677.33008704,0.0001099,6]
[333604486,1722275452028,-225336.55524702,0.0001099,6]
[333604487,1722275452040,-145080.53980222,0.0001099,6]
[333604488,1722275452052,-18388.1604687,0.0001099,6]
[333604489,1722275452064,-1388.6181,0.0001099,6]
[333604490,1722275452097,-1055.87310247,0.00010899,2]
[333604491,1722275452476,-1194.8193386,0.00010899,2]
[333604492,1722275452486,-19.87532783,0.00010958,2]
[333604493,1722275452499,-483.61944047,0.00010958,2]
[333604494,1722275452508,-500.0,0.00010958,2]
[333604496,1722275452520,-128016.38055953,0.0001099,6]
[333604498,1722275452533,-1146.14917189,0.0001099,6]
[333604500,1722275452556,-362.2774596,0.00010988,2]
[333604501,1722275452568,-204.9725404,0.00010988,2]
[333604502,1722275452577,-1511.4774596,0.0001099,6]
[333604503,1722275452596,-2258.70326122,0.0001099,6]
[333604504,1722275452607,-1340.8,0.0001099,6]
[333604505,1722275452619,-1269.51983804,0.0001099,6]
[333604506,1722275452630,-307.89258711,0.0001099,6]
[333604507,1722275452647,-1754.02771519,0.0001099,6]
[333604508,1722275452659,-1043.4000003,0.0001099,6]
[333604509,1722275528726,-300.7497307,8.219e-05,2]
[333604510,1722275528748,-98.4702693,8.219e-05,2]
[333604511,1722275575772,2000.70376678,0.00027,120]
[333604512,1722275603484,500.0,0.00025729,120]
[333604513,1722275611000,1000.0,0.00024932,120]
[333604534,1722276525881,258.27176699,0.00025,60]
[333604547,1722276632368,-182.57,7.843e-05,2]
[333604548,1722276632377,-505.86412,7.999e-05,2]
[333604549,1722276632413,-79.13588,7.999e-05,2]
[333604550,1722276632422,-1000.0,8e-05,2]
[333604551,1722276632432,-169.11,8.219e-05,2]
[333604552,1722276632441,-502.46,8.219e-05,2]
[333604553,1722276632451,-1064.41,9e-05,2]
[333604554,1722276632461,-300.0,9.683e-05,2]
[333604555,1722276632470,-182.57852,9.684e-05,2]
[333604556,1722276632481,-7354.38,9.684e-05,2]
[333604557,1722276632547,-677.00797295,9.684e-05,2]
[333604598,1722276638331,-13707.17350705,9.684e-05,2]
[333604599,1722276638341,-250.0,9.691e-05,2]
[333604600,1722276638350,-1000.0,9.74e-05,2]
[333604601,1722276638360,-168.83,9.748e-05,2]
[333604602,1722276638369,-600.0,9.9e-05,3]
[333604603,1722276638378,-500.0,0.0001,2]
[333604604,1722276638387,-1000.0,0.0001,2]
[333604605,1722276638396,-1000.0,0.0001,2]
[333604606,1722276638405,-1250.0,0.0001,2]
[333604607,1722276638415,-1300.0,0.0001,3]
[333604608,1722276638424,-420.03,0.00010055,2]
[333604609,1722276638434,-1900.0,0.000101,3]
[333604610,1722276638443,-150.0,0.00010192,2]
[333604611,1722276638451,-150.0,0.00010192,2]
[333604612,1722276638462,-150.0,0.00010192,2]
[333604613,1722276638471,-150.0,0.00010192,2]
[333604614,1722276638481,-150.0,0.00010192,2]
[333604615,1722276638491,-2600.0,0.000102,3]
[333604616,1722276638501,-150.0,0.00010299,2]
[333604617,1722276638511,-3200.0,0.000103,3]
[333604618,1722276638520,-600.0,0.000104,3]
[333604619,1722276638529,-502.46,0.00010459,2]
[333604620,1722276638539,-500.0,0.000105,2]
[333604621,1722276638548,-150.0,0.000105,2]
[333604622,1722276638558,-600.0,0.000105,3]
[333604623,1722276638567,-600.0,0.000106,3]
[333604624,1722276638577,-4197.12161203,0.00010641,2]
[333604625,1722276638586,-420.0,0.00010651,2]
[333604626,1722276638596,-24009.6498,0.000107,2]
[333604627,1722276638605,-5603.39508089,0.000107,2]
[333604628,1722276638616,-255.3477856,0.000107,2]
[333604629,1722276638631,-330.200041,0.000107,2]
[333604630,1722276638661,-0.0335436,0.000107,2]
[333604631,1722276638679,-367.48164891,0.000107,2]
[333604633,1722276638688,-1021.7335,0.000107,2]
[333604634,1722276638697,-295.1758,0.000107,2]
[333604635,1722276638708,-799.3339106,0.000107,2]
[333604636,1722276638719,-260.6690894,0.000107,2]
[333604637,1722276638728,-150.0,0.000107,2]
[333604638,1722276638737,-150.0,0.000107,2]
[333604639,1722276638747,-54.43909657,0.000107,3]
[333604640,1722276638758,-545.56090343,0.000107,3]
[333604641,1722276638767,-150.0,0.000108,2]
[333604642,1722276638777,-150.0,0.000108,2]
[333604643,1722276638786,-150.0,0.000108,2]
[333604644,1722276638796,-1518.48,0.000108,2]
[333604645,1722276638805,-416.66913112,0.000108,3]
[333604646,1722276638817,-583.33086888,0.000108,3]
[333604647,1722276638826,-22.27991704,0.00010888,2]
[333604648,1722276638838,-468.67188296,0.00010888,2]
[333604649,1722276638847,-1000.0,0.00010889,2]
[333604650,1722276638857,-333.8714,0.00010895,2]
[333604651,1722276638867,-7500.0,0.00010898,2]
[333604652,1722276638876,-169.27176966,0.00010899,2]
[333604653,1722276638885,-174.00586575,0.00010899,2]
[333604654,1722276638895,-1500.46162738,0.00010899,2]
[333604655,1722276638904,-221.2004305,0.00010899,2]
[333604656,1722276638913,-169.27176964,0.000109,2]
[333604657,1722276638923,-1500.46162738,0.000109,2]
[333604658,1722276638932,-169.27176964,0.000109,2]
[333604659,1722276638941,-174.00586575,0.000109,2]
[333604660,1722276638951,-179.37844276,0.000109,2]
[333604661,1722276638962,-179.37844276,0.000109,2]
[333604662,1722276638971,-1000.0,0.000109,2]
[333604663,1722276638980,-1500.46162738,0.000109,2]
[333604664,1722276638990,-221.2004305,0.000109,2]
[333604665,1722276638999,-221.07,0.00010904,3]
[333604666,1722276639008,-500.0,0.00010907,2]
[333604667,1722276639017,-500.0,0.00010929,2]
[333604668,1722276639027,-500.0,0.00010937,2]
[333604669,1722276639036,-500.0,0.00010946,2]
[333604670,1722276639045,-500.0,0.00010955,2]
[333604671,1722276639054,-976.15384794,0.00010958,2]
[333604673,1722276639070,-23.84615206,0.00010958,2]
[333604675,1722276639079,-500.0,0.00010958,2]
[333604677,1722276639088,-500.0,0.00010958,2]
[333604679,1722276639098,-500.0,0.00010958,2]
[333604681,1722276639107,-536.01384794,0.00010958,2]
[333604683,1722276639124,-109.75214811,0.00010958,2]
[333604707,1722276639366,-500.0,0.00010958,2]
[333604709,1722276639376,-226.01785189,0.00010958,2]
[333604711,1722276639388,-342.28214811,0.00010958,2]
[333604713,1722276639397,-500.0,0.00010958,2]
[333604715,1722276639407,-500.0,0.00010958,2]
[333604716,1722276639416,-166.0045403,0.00010958,2]
[333604717,1722276639427,-333.9954597,0.00010958,2]
[333604718,1722276639436,-17.84445018,0.00010958,2]
[333604813,1722276640387,-492.73554982,0.00010958,2]
[333604815,1722276640397,-956.32,0.00010958,2]
[333604817,1722276640406,-956.32,0.00010958,2]
[333604819,1722276640416,-500.0,0.00010958,2]
[333604820,1722276640425,-500.0,0.00010958,2]
[333604822,1722276640434,-500.0,0.00010958,2]
[333604824,1722276640444,-203.56498825,0.00010958,2]
[333604826,1722276640453,-350.25203095,0.00010958,2]
[333604828,1722276640466,-182.56796905,0.00010958,2]
[333604830,1722276640476,-154.29340895,0.00010958,2]
[333604832,1722276640488,-345.70659105,0.00010958,2]
[333604834,1722276640498,-500.0,0.00010958,2]
[333604836,1722276640507,-500.0,0.00010958,2]
[333604838,1722276640517,-500.0,0.00010958,2]
[333604840,1722276640527,-392.19426503,0.00010958,2]
[333604842,1722276640536,-500.0,0.00010958,2]
[333604844,1722276640546,-500.0,0.00010958,2]
[333604846,1722276640555,-500.0,0.00010958,2]
[333604848,1722276640565,-499.14525089,0.00010958,2]
[333604850,1722276640575,-500.0,0.00010958,2]
[333604852,1722276640584,-500.0,0.00010958,2]
[333604854,1722276640593,-591.51,0.00010958,2]
[333604856,1722276640603,-591.51,0.00010958,2]
[333604858,1722276640613,-500.0,0.00010958,2]
[333604860,1722276640622,-452.5821703,0.00010958,2]
[333604861,1722276640632,-567.02,0.00010958,2]
[333604863,1722276640641,-567.02,0.00010958,2]
[333604865,1722276640650,-693.64,0.00010958,2]
[333604867,1722276640660,-693.64,0.00010958,2]
[333604869,1722276640670,-519.34,0.00010958,2]
[333604871,1722276640679,-519.34,0.00010958,2]
[333604873,1722276640688,-978.64,0.00010958,2]
[333604875,1722276640698,-978.64,0.00010958,2]
[333604877,1722276640711,-833.63,0.00010958,2]
[333604879,1722276640720,-833.63,0.00010958,2]
[333604880,1722276640730,-2773.91,0.00010958,2]
[333604882,1722276640739,-2773.91,0.00010958,2]
[333604884,1722276640749,-200.0,0.00010959,2]
[333604886,1722276640762,-150.0,0.00010959,2]
[333604888,1722276640771,-250.0,0.00010959,2]
[333604890,1722276640781,-500.0,0.00010959,2]
[333604892,1722276640790,-500.0,0.00010964,2]
[333604894,1722276640799,-500.0,0.00010973,2]
[333604896,1722276640808,-1002.0,0.0001098,2]
[333604898,1722276640817,-1000.0,0.0001098,3]
[333604900,1722276640827,-500.0,0.00010981,2]
[333604902,1722276640836,-500.0,0.00010988,2]
[333604904,1722276640846,-568.3,0.00010988,2]
[333604906,1722276640855,-500.0,0.00010988,2]
[333604907,1722276640864,-373.74504615,0.00010988,2]
[333604909,1722276640873,-510.58,0.00010988,2]
[333604911,1722276640882,-956.32,0.00010988,2]
[333604913,1722276640891,-500.0,0.00010988,2]
[333604915,1722276640901,-500.0,0.00010988,2]
[333604917,1722276640910,-500.0,0.00010988,2]
[333604919,1722276640919,-500.0,0.00010988,2]
[333604921,1722276640928,-500.0,0.00010988,2]
[333604923,1722276640937,-500.0,0.00010988,2]
[333604925,1722276640946,-500.0,0.00010988,2]
[333604927,1722276640957,-500.0,0.00010988,2]
[333604929,1722276640966,-621.16,0.00010988,2]
[333604931,1722276640975,-500.0,0.00010988,2]
[333604933,1722276640984,-500.0,0.00010988,2]
[333604935,1722276640993,-591.51,0.00010988,2]
[333604937,1722276641002,-567.02,0.00010988,2]
[333604939,1722276641011,-500.0,0.00010988,2]
[333604940,1722276641021,-500.0,0.00010988,2]
[333604942,1722276641030,-500.0,0.00010988,2]
[333604944,1722276641039,-693.64,0.00010988,2]
[333604946,1722276641048,-924.29,0.00010988,2]
[333604947,1722276641057,-519.34,0.00010988,2]
[333604949,1722276641066,-978.64,0.00010988,2]
[333604951,1722276641075,-500.0,0.00010988,2]
[333604953,1722276641085,-833.63,0.00010988,2]
[333604955,1722276641095,-500.0,0.00010988,2]
[333604957,1722276641104,-500.0,0.00010989,2]
[333604959,1722276641113,-568.3,0.00010989,2]
[333604961,1722276641123,-568.3,0.00010989,2]
[333604963,1722276641132,-278.7943116,0.00010989,2]
[333604965,1722276641142,-469.78232591,0.00010989,2]
[333604967,1722276641151,-510.58,0.00010989,2]
[333604969,1722276641160,-510.58,0.00010989,2]
[333604971,1722276641169,-956.32,0.00010989,2]
[333604972,1722276641179,-956.32,0.00010989,2]
[333604974,1722276641188,-956.32,0.00010989,2]
[333604976,1722276641197,-500.0,0.00010989,2]
[333604978,1722276641207,-552.84,0.00010989,2]
[333604980,1722276641217,-500.0,0.00010989,2]
[333604982,1722276641226,-500.0,0.00010989,2]
[333604984,1722276641235,-500.0,0.00010989,2]
[333604986,1722276641244,-500.0,0.00010989,2]
[333604987,1722276641254,-500.0,0.00010989,2]
[333604989,1722276641267,-500.0,0.00010989,2]
[333604991,1722276641276,-500.0,0.00010989,2]
[333604993,1722276641285,-500.0,0.00010989,2]
[333604995,1722276641294,-500.0,0.00010989,2]
[333604997,1722276641303,-500.0,0.00010989,2]
[333604999,1722276641313,-613.81,0.00010989,2]
[333605001,1722276641323,-560.39,0.00010989,2]
[333605003,1722276641332,-500.0,0.00010989,2]
[333605005,1722276641343,-500.0,0.00010989,2]
[333605006,1722276641352,-500.0,0.00010989,2]
[333605007,1722276641361,-500.0,0.00010989,2]
[333605008,1722276641370,-500.0,0.00010989,2]
[333605009,1722276641380,-500.0,0.00010989,2]
[333605010,1722276641389,-500.0,0.00010989,2]
[333605011,1722276641398,-500.0,0.00010989,2]
[333605012,1722276641408,-500.0,0.00010989,2]
[333605013,1722276641417,-500.0,0.00010989,2]
[333605014,1722276641426,-500.0,0.00010989,2]
[333605015,1722276641435,-639.21,0.00010989,2]
[333605016,1722276641444,-500.0,0.00010989,2]
[333605018,1722276641453,-500.0,0.00010989,2]
[333605019,1722276641465,-500.0,0.00010989,2]
[333605021,1722276641474,-500.0,0.00010989,2]
[333605023,1722276641484,-500.0,0.00010989,2]
[333605025,1722276641494,-500.0,0.00010989,2]
[333605027,1722276641503,-522.68,0.00010989,2]
[333605029,1722276641513,-885.48,0.00010989,2]
[333605031,1722276641523,-500.0,0.00010989,2]
[333605033,1722276641532,-500.0,0.00010989,2]
[333605035,1722276641541,-500.0,0.00010989,2]
[333605037,1722276641551,-500.0,0.00010989,2]
[333605039,1722276641560,-500.0,0.00010989,2]
[333605041,1722276641569,-500.0,0.00010989,2]
[333605043,1722276641579,-500.0,0.00010989,2]
[333605045,1722276641588,-378.18627965,0.00010989,2]
[333605047,1722276641598,-500.0,0.00010989,2]
[333605049,1722276641607,-591.51,0.00010989,2]
[333605051,1722276641617,-591.51,0.00010989,2]
[333605053,1722276641626,-591.51,0.00010989,2]
[333605055,1722276641636,-500.0,0.00010989,2]
[333605057,1722276641645,-500.0,0.00010989,2]
[333605059,1722276641654,-155.75330944,0.00010989,2]
[333605061,1722276641663,-567.02,0.00010989,2]
[333605063,1722276641673,-567.02,0.00010989,2]
[333605065,1722276641682,-500.0,0.00010989,2]
[333605066,1722276641691,-567.02,0.00010989,2]
[333605067,1722276641700,-500.0,0.00010989,2]
[333605068,1722276641711,-500.0,0.00010989,2]
[333605069,1722276641720,-500.0,0.00010989,2]
[333605070,1722276641729,-500.0,0.00010989,2]
[333605071,1722276641739,-693.64,0.00010989,2]
[333605072,1722276641748,-693.64,0.00010989,2]
[333605073,1722276641758,-693.64,0.00010989,2]
[333605074,1722276641767,-500.0,0.00010989,2]
[333605075,1722276641778,-519.34,0.00010989,2]
[333605076,1722276641787,-519.34,0.00010989,2]
[333605077,1722276641796,-519.34,0.00010989,2]
[333605078,1722276641806,-978.64,0.00010989,2]
[333605079,1722276641815,-978.64,0.00010989,2]
[333605080,1722276641825,-978.64,0.00010989,2]
[333605081,1722276641834,-500.0,0.00010989,2]
[333605082,1722276641843,-500.0,0.00010989,2]
[333605083,1722276641852,-500.0,0.00010989,2]
[333605084,1722276641862,-500.0,0.00010989,2]
[333605085,1722276641871,-833.63,0.00010989,2]
[333605086,1722276641880,-500.0,0.00010989,2]
[333605087,1722276641889,-833.63,0.00010989,2]
[333605088,1722276641898,-833.63,0.00010989,2]
[333605089,1722276641908,-2335.25,0.00010989,2]
[333605090,1722276641917,-500.0,0.00010989,2]
[333605091,1722276641927,-8304.35679754,0.0001099,6]
[333605092,1722276641937,-262.0,0.0001099,2]
[333605093,1722276641946,-1000.0,0.0001099,2]
[333605094,1722276641956,-1000.0,0.0001099,2]
[333605095,1722276641965,-1007.0,0.0001099,3]
[333605096,1722276641974,-1000.0,0.0001099,3]
[333605097,1722276641984,-3000.0,0.0001099,2]
[333605098,1722276641993,-500.0,0.0001099,2]
[333605099,1722276642003,-500.0,0.0001099,2]
[333605100,1722276642012,-500.0,0.00010995,2]
[333605101,1722276642021,-613.43,0.00010995,2]
[333605102,1722276642031,-500.0,0.00010995,2]
[333605103,1722276642040,-500.0,0.00010995,2]
[333605104,1722276642050,-500.0,0.00010995,2]
[333605105,1722276642059,-483.28,0.00010995,2]
[333605106,1722276642068,-500.0,0.00010995,2]
[333605107,1722276642079,-500.0,0.00010995,2]
[333605108,1722276642089,-2382.85,0.00010995,2]
[333605109,1722276642100,-207.54,0.00010995,2]
[333605110,1722276642109,-500.0,0.00010995,2]
[333605112,1722276642119,-500.0,0.00010995,2]
[333605114,1722276642129,-500.0,0.00010995,2]
[333605116,1722276642139,-500.0,0.00010995,2]
[333605118,1722276642148,-500.0,0.00010995,2]
[333605120,1722276642158,-500.0,0.00010995,2]
[333605122,1722276642168,-795.89,0.00010995,2]
[333605124,1722276642177,-183.354,0.00010995,2]
[333605126,1722276642187,-150.0,0.00010995,2]
[333605128,1722276642196,-150.0,0.00010995,2]
[333605130,1722276642206,-827.29970755,0.00010995,2]
[333605132,1722276642215,-6618.3976604,0.00010996,2]
[333605134,1722276642224,-568.3,0.00010997,2]
[333605136,1722276642234,-568.3,0.00010997,2]
[333605138,1722276642243,-510.58,0.00010997,2]
[333605139,1722276642253,-510.58,0.00010997,2]
[333605141,1722276642264,-956.32,0.00010997,2]
[333605143,1722276642274,-500.0,0.00010997,2]
[333605144,1722276642284,-500.0,0.00010997,2]
[333605146,1722276642293,-191.15,0.00010997,2]
[333605148,1722276642304,-500.0,0.00010997,2]
[333605150,1722276642313,-500.0,0.00010997,2]
[333605152,1722276642322,-500.0,0.00010997,2]
[333605154,1722276642332,-613.43,0.00010997,2]
[333605156,1722276642341,-367.24,0.00010997,2]
[333605158,1722276642352,-500.0,0.00010997,2]
[333605160,1722276642361,-500.0,0.00010997,2]
[333605162,1722276642371,-560.39,0.00010997,2]
[333605164,1722276642381,-500.0,0.00010997,2]
[333605166,1722276642390,-500.0,0.00010997,2]
[333605167,1722276642399,-500.0,0.00010997,2]
[333605168,1722276642408,-500.0,0.00010997,2]
[333605169,1722276642417,-500.0,0.00010997,2]
[333605170,1722276642426,-500.0,0.00010997,2]
[333605171,1722276642435,-500.0,0.00010997,2]
[333605172,1722276642444,-500.0,0.00010997,2]
[333605173,1722276642454,-250.0,0.00010997,2]
[333605174,1722276642463,-500.0,0.00010997,2]
[333605175,1722276642473,-500.0,0.00010997,2]
[333605176,1722276642482,-500.0,0.00010997,2]
[333605177,1722276642492,-2382.85,0.00010997,2]
[333605178,1722276642501,-500.0,0.00010997,2]
[333605179,1722276642511,-599.98470993,0.00010997,2]
[333605180,1722276642520,-639.21,0.00010997,2]
[333605181,1722276642529,-533.41390563,0.00010997,2]
[333605182,1722276642539,-500.0,0.00010997,2]
[333605183,1722276642548,-500.0,0.00010997,2]
[333605184,1722276642557,-500.0,0.00010997,2]
[333605185,1722276642566,-500.0,0.00010997,2]
[333605186,1722276642575,-500.0,0.00010997,2]
[333605187,1722276642585,-500.0,0.00010997,2]
[333605188,1722276642594,-500.0,0.00010997,2]
[333605189,1722276642604,-500.0,0.00010997,2]
[333605190,1722276642613,-500.0,0.00010997,2]
[333605191,1722276642622,-522.68,0.00010997,2]
[333605192,1722276642631,-522.68,0.00010997,2]
[333605193,1722276642641,-885.48,0.00010997,2]
[333605194,1722276642650,-621.16,0.00010997,2]
[333605195,1722276642659,-621.16,0.00010997,2]
[333605196,1722276642669,-500.0,0.00010997,2]
[333605197,1722276642678,-500.0,0.00010997,2]
[333605198,1722276642688,-500.0,0.00010997,2]
[333605199,1722276642698,-500.0,0.00010997,2]
[333605200,1722276642709,-500.0,0.00010997,2]
[333605201,1722276642719,-500.0,0.00010997,2]
[333605202,1722276642728,-500.0,0.00010997,2]
[333605203,1722276642738,-500.0,0.00010997,2]
[333605204,1722276642748,-500.0,0.00010997,2]
[333605205,1722276642757,-500.0,0.00010997,2]
[333605206,1722276642767,-500.0,0.00010997,2]
[333605207,1722276642778,-500.0,0.00010997,2]
[333605208,1722276642788,-500.0,0.00010997,2]
[333605209,1722276642798,-500.0,0.00010997,2]
[333605210,1722276642808,-591.51,0.00010997,2]
[333605211,1722276642819,-500.0,0.00010997,2]
[333605212,1722276642829,-500.0,0.00010997,2]
[333605213,1722276642839,-683.39,0.00010997,2]
[333605214,1722276642849,-683.39,0.00010997,2]
[333605215,1722276642859,-500.0,0.00010997,2]
[333605216,1722276642869,-500.0,0.00010997,2]
[333605217,1722276642878,-500.0,0.00010997,2]
[333605218,1722276642888,-500.0,0.00010997,2]
[333605219,1722276642897,-500.0,0.00010997,2]
[333605220,1722276642906,-500.0,0.00010997,2]
[333605221,1722276642915,-500.0,0.00010997,2]
[333605222,1722276642924,-567.02,0.00010997,2]
[333605223,1722276642934,-500.0,0.00010997,2]
[333605224,1722276642943,-500.0,0.00010997,2]
[333605225,1722276642954,-500.0,0.00010997,2]
[333605226,1722276642968,-500.0,0.00010997,2]
[333605227,1722276642977,-500.0,0.00010997,2]
[333605228,1722276642987,-500.0,0.00010997,2]
[333605229,1722276642996,-500.0,0.00010997,2]
[333605230,1722276643005,-500.0,0.00010997,2]
[333605231,1722276643015,-500.0,0.00010997,2]
[333605232,1722276643025,-500.0,0.00010997,2]
[333605233,1722276643034,-693.64,0.00010997,2]
[333605234,1722276643044,-500.0,0.00010997,2]
[333605235,1722276643053,-924.29,0.00010997,2]
[333605236,1722276643063,-924.29,0.00010997,2]
[333605237,1722276643072,-519.34,0.00010997,2]
[333605238,1722276643082,-500.0,0.00010997,2]
[333605239,1722276643092,-978.64,0.00010997,2]
[333605240,1722276643101,-500.0,0.00010997,2]
[333605241,1722276643111,-500.0,0.00010997,2]
[333605242,1722276643121,-500.0,0.00010997,2]
[333605243,1722276643130,-500.0,0.00010997,2]
[333605244,1722276643139,-440.0,0.00010997,2]
[333605245,1722276643149,-500.0,0.00010997,2]
[333605246,1722276643158,-500.0,0.00010997,2]
[333605247,1722276643167,-500.0,0.00010997,2]
[333605248,1722276643177,-833.63,0.00010997,2]
[333605249,1722276643186,-2335.25,0.00010997,2]
[333605250,1722276643195,-2335.25,0.00010997,2]
[333605252,1722276643207,-500.0,0.00010997,2]
[333605254,1722276643217,-319.58002412,0.00010997,2]
[333605255,1722276643227,-795.89,0.00010997,2]
[333605256,1722276643236,-165.46711443,0.00010998,2]
[333605257,1722276643246,-1018.42089925,0.00010998,3]
[333605258,1722276643256,-1018.42089925,0.00010998,3]
[333605259,1722276643268,-1018.42089925,0.00010998,3]
[333605260,1722276643278,-568.3,0.00010998,2]
[333605262,1722276643287,-568.3,0.00010998,2]
[333605264,1722276643297,-568.3,0.00010998,2]
[333605265,1722276643307,-568.3,0.00010998,2]
[333605266,1722276643317,-568.3,0.00010998,2]
[333605267,1722276643326,-568.3,0.00010998,2]
[333605268,1722276643336,-568.3,0.00010998,2]
[333605269,1722276643346,-568.3,0.00010998,2]
[333605270,1722276643356,-568.3,0.00010998,2]
[333605271,1722276643365,-568.3,0.00010998,2]
[333605273,1722276643374,-568.3,0.00010998,2]
[333605274,1722276643383,-568.3,0.00010998,2]
[333605275,1722276643393,-568.3,0.00010998,2]
[333605276,1722276643402,-568.3,0.00010998,2]
[333605277,1722276643411,-568.3,0.00010998,2]
[333605278,1722276643420,-568.3,0.00010998,2]
[333605279,1722276643429,-568.3,0.00010998,2]
[333605280,1722276643439,-568.48,0.00010998,2]
[333605281,1722276643447,-510.58,0.00010998,2]
[333605282,1722276643457,-510.58,0.00010998,2]
[333605283,1722276643467,-510.58,0.00010998,2]
[333605284,1722276643476,-510.58,0.00010998,2]
[333605285,1722276643486,-510.58,0.00010998,2]
[333605286,1722276643495,-510.58,0.00010998,2]
[333605287,1722276643504,-510.58,0.00010998,2]
[333605288,1722276643514,-510.58,0.00010998,2]
[333605289,1722276643523,-510.58,0.00010998,2]
[333605290,1722276643533,-510.58,0.00010998,2]
[333605291,1722276643543,-510.58,0.00010998,2]
[333605292,1722276643552,-510.58,0.00010998,2]
[333605293,1722276643562,-510.58,0.00010998,2]
[333605294,1722276643571,-510.58,0.00010998,2]
[333605295,1722276643581,-510.58,0.00010998,2]
[333605296,1722276643590,-510.58,0.00010998,2]
[333605297,1722276643600,-510.58,0.00010998,2]
[333605298,1722276643609,-510.78453797,0.00010998,2]
[333605299,1722276643618,-956.32,0.00010998,2]
[333605300,1722276643627,-956.32,0.00010998,2]
[333605301,1722276643637,-956.32,0.00010998,2]
[333605302,1722276643646,-956.32,0.00010998,2]
[333605303,1722276643655,-956.32,0.00010998,2]
[333605304,1722276643664,-956.32,0.00010998,2]
[333605305,1722276643673,-956.32,0.00010998,2]
[333605306,1722276643683,-956.32,0.00010998,2]
[333605307,1722276643692,-956.32,0.00010998,2]
[333605308,1722276643701,-956.32,0.00010998,2]
[333605309,1722276643714,-956.32,0.00010998,2]
[333605310,1722276643723,-956.32,0.00010998,2]
[333605312,1722276643733,-956.32,0.00010998,2]
[333605314,1722276643744,-956.32,0.00010998,2]
[333605316,1722276643753,-956.32,0.00010998,2]
[333605318,1722276643763,-956.32,0.00010998,2]
[333605320,1722276643772,-956.37386102,0.00010998,2]
[333605322,1722276643782,-500.0,0.00010998,2]
[333605324,1722276643791,-500.0,0.00010998,2]
[333605326,1722276643801,-500.0,0.00010998,2]
[333605328,1722276643810,-500.0,0.00010998,2]
[333605330,1722276643819,-500.0,0.00010998,2]
[333605332,1722276643828,-500.0,0.00010998,2]